bitfinex/quotes_SOLUSD_20240811
["timestamp","ask_amount","ask_price","bid_price","bid_amount"]
[1723392531384,31.1705,148.92,148.84,15.2472]
[1723392531695,26.47,148.86,148.79,15.2472]
[1723392532064,26.47,148.88,148.79,15.2472]
[1723392532267,26.47,148.88,148.79,16.59116507]
[1723392532469,26.47,148.88,148.79,15.2472]
[1723392532764,26.47,148.86,148.79,15.2472]
[1723392533973,26.47,148.88,148.79,15.2472]
[1723392534890,31.1719,148.88,148.79,15.2472]
[1723392535483,4.7021,148.87,148.79,15.2472]
[1723392537693,26.47,148.84,148.78,7.4312404]
[1723392538194,31.1731,148.84,148.78,0.8084404]
[1723392538718,26.47,148.84,148.78,0.8084404]
[1723392539287,31.1731,148.84,148.78,0.8084404]
[1723392539788,26.47,148.82,148.78,0.8084404]
[1723392540888,31.1738,148.82,148.78,0.8084404]
[1723392541100,4.7046,148.79,148.78,0.8084404]
[1723392541387,26.47,148.8,148.78,0.8084404]
[1723392541595,31.1737,148.82,148.78,0.8084404]
[1723392541799,4.704,148.81,148.78,0.8084404]
[1723392541997,26.47,148.8,148.78,0.8084404]
[1723392542289,31.1732,148.84,148.78,0.8084404]
[1723392542787,4.7033,148.83,148.78,0.8084404]
[1723392542994,15.1595,148.85,148.78,0.8084404]
[1723392543288,19.8622,148.85,148.78,0.8084404]
[1723392544489,32.6071,148.88,148.78,16.0556404]
[1723392544894,4.7026,148.86,148.78,16.0556404]
[1723392545688,26.47,148.88,148.79,0.12549]
[1723392545899,31.1705,148.92,148.82,0.12549]
[1723392546107,31.1705,148.92,148.82,46.72000034]
[1723392546267,19.9751,148.93,148.84,0.12549]
[1723392546467,4.7002,148.93,148.85,16.0274]
[1723392546667,4.7008,148.91,148.85,16.0274]
[1723392547075,4.7005,148.92,148.85,16.0274]
[1723392547692,4.7005,148.92,148.83,7.88416059]
[1723392547693,4.702,148.88,148.83,6.5407]
[1723392547904,4.7014,148.89,148.83,6.5407]
[1723392548070,26.47,148.9,148.83,6.5407]
[1723392548271,26.47,148.9,148.84,0.12549]
[1723392548485,20.0,148.93,148.84,46.72000638]
[1723392548804,24.7002,148.93,148.85,0.12549]
[1723392548977,24.7002,148.93,148.85,0.37647]
[1723392549368,24.7002,148.93,148.86,0.12549]
[1723392549574,24.7002,148.93,148.86,0.37647]
[1723392549780,26.47,148.96,148.86,0.37647]
[1723392549985,26.47,148.96,148.88,16.0274]
[1723392550190,4.6998,148.94,148.88,16.0274]
[1723392550386,26.47,148.96,148.88,16.0274]
[1723392550585,26.47,148.94,148.85,0.12549]
[1723392550792,26.47,148.94,148.85,0.37647]
[1723392550998,26.47,148.94,148.85,0.50196]
[1723392551499,4.7004,148.93,148.85,0.50196]
[1723392551687,26.47,148.94,148.85,0.50196]
[1723392551914,4.7013,148.9,148.84,16.0274]
[1723392552094,26.47,148.9,148.84,16.0274]
[1723392552276,4.7017,148.88,148.83,6.5407]
[1723392552974,31.1711,148.9,148.83,6.5407]
[1723392553178,26.59549,148.96,148.83,6.5407]
[1723392553179,26.47,148.92,148.83,6.5407]
[1723392553379,26.47,148.92,148.84,0.12549]
[1723392553582,4.701,148.91,148.84,45.25098]
[1723392553812,31.1712,148.9,148.83,6.5407]
[1723392553983,4.7014,148.89,148.83,6.5407]
[1723392554181,4.7019,148.88,148.83,6.5407]
[1723392554488,26.47,148.86,148.8,16.0274]
[1723392554887,31.1726,148.86,148.8,16.0274]
[1723392556292,4.7028,148.85,148.8,16.0274]
[1723392556801,31.1724,148.86,148.8,16.0274]
[1723392557004,26.47,148.86,148.8,16.0274]
[1723392557382,26.47,148.88,148.81,0.25098]
[1723392557597,4.7014,148.89,148.81,45.25098]
[1723392557810,26.47,148.92,148.82,0.12549]
[1723392558110,4.7008,148.91,148.83,0.12549]
[1723392558407,4.7012,148.9,148.83,0.37647]
[1723392558778,4.7008,148.91,148.84,0.12549]
[1723392558982,4.7008,148.91,148.84,1.46899044]
[1723392559801,4.7008,148.91,148.84,0.12549]
[1723392560107,4.7015,148.89,148.83,0.37647]
[1723392560879,4.7012,148.9,148.83,0.37647]
[1723392562395,4.7012,148.9,148.81,45.0]
[1723392562396,4.7026,148.86,148.8,16.0274]
[1723392562706,4.7027,148.85,148.8,16.0274]
[1723392562911,26.47,148.86,148.8,16.0274]
[1723392563083,31.1717,148.89,148.8,16.0274]
[1723392563410,4.7019,148.88,148.8,16.0274]
[1723392563587,4.7022,148.87,148.8,16.0274]
[1723392564109,4.7018,148.88,148.81,0.12549]
[1723392564289,26.47,148.89,148.81,0.50196]
[1723392564290,31.1716,148.89,148.81,0.50196]
[1723392564489,26.47,148.89,148.81,0.37647]
[1723392564718,26.47,148.89,148.8,16.0274]
[1723392564719,4.7023,148.87,148.8,16.0274]
[1723392565784,4.7018,148.88,148.8,16.0274]
[1723392566709,26.47,148.85,148.8,16.0274]
[1723392566882,31.1728,148.85,148.8,16.0274]
[1723392567278,26.47,148.85,148.8,16.0274]
[1723392567486,4.7031,148.84,148.8,16.0274]
[1723392567709,26.47,148.85,148.77,16.4834]
[1723392567919,4.703,148.84,148.77,16.4834]
[1723392568121,24.7026,148.86,148.77,16.4834]
[1723392568484,20.0,148.86,148.77,42.9534]
[1723392568790,31.1721,148.87,148.77,42.9534]
[1723392568992,4.7024,148.86,148.79,0.12549]
[1723392569297,4.7028,148.85,148.78,45.8084404]
[1723392569797,4.7024,148.86,148.78,45.8084404]
[1723392570218,31.1721,148.87,148.79,0.12549]
[1723392570511,31.1721,148.87,148.79,0.50196]
[1723392570682,4.7024,148.86,148.79,0.50196]
[1723392571090,26.47,148.85,148.78,45.8084404]
[1723392571287,26.47,148.83,148.78,0.8084404]
[1723392571514,31.1734,148.83,148.78,0.8084404]
[1723392571883,26.47,148.83,148.78,0.8084404]
[1723392572092,31.173,148.85,148.78,0.8084404]
[1723392572597,4.7031,148.84,148.78,0.8084404]
[1723392573010,4.7034,148.83,148.78,0.8084404]
[1723392573205,26.47,148.83,148.78,0.8084404]
[1723392573403,31.1729,148.85,148.78,0.8084404]
[1723392574613,4.703,148.84,148.78,0.8084404]
[1723392575818,4.7035,148.83,148.78,0.8084404]
[1723392576231,31.1735,148.83,148.78,0.8084404]
[1723392576515,31.1741,148.81,148.78,0.8084404]
[1723392577526,4.7043,148.8,148.78,0.8084404]
[1723392577821,15.23539,148.85,148.78,0.8084404]
[1723392577822,31.1746,148.79,148.78,0.8084404]
[1723392579122,26.47,148.79,148.78,0.8084404]
[1723392579521,31.1746,148.79,148.78,0.8084404]
[1723392580219,51.30009,148.79,148.78,0.8084404]
[1723392580409,51.1746,148.79,148.78,0.8084404]
[1723392581019,51.30009,148.79,148.78,0.8084404]
[1723392581522,96.30009,148.79,148.78,0.8084404]
[1723392582026,15.23539,148.78,148.69,16.4834]
[1723392582197,26.47,148.74,148.66,6.1396]
[1723392582397,26.47,148.72,148.66,6.1396]
[1723392583007,26.47,148.72,148.68,4.7077]
[1723392583198,26.47,148.74,148.66,6.1396]
[1723392583617,31.1764,148.74,148.68,4.7077]
[1723392583797,4.7067,148.73,148.68,4.7077]
[1723392584105,31.1769,148.72,148.67,4.7083]
[1723392584507,26.47,148.72,148.68,4.708]
[1723392584699,26.47,148.72,148.69,4.7077]
[1723392585016,26.47,148.74,148.7,4.7074]
[1723392585202,31.1758,148.76,148.71,4.707]
[1723392585403,20.0,148.75,148.71,4.707]
[1723392585836,31.1758,148.76,148.71,4.707]
[1723392586127,4.7059,148.75,148.71,4.707]
[1723392586321,4.7059,148.75,148.66,6.1396]
[1723392586635,4.7059,148.75,148.67,45.50196]
[1723392586941,4.7062,148.74,148.67,45.50196]
[1723392587222,4.7059,148.75,148.67,45.50196]
[1723392587935,31.1755,148.76,148.67,45.50196]
[1723392588115,31.1755,148.76,148.69,0.12549]
[1723392588303,31.1755,148.76,148.69,0.37647]
[1723392588504,31.1755,148.76,148.69,0.25098]
[1723392588829,4.7058,148.75,148.68,0.25098]
[1723392589003,4.7062,148.74,148.68,0.25098]
[1723392589204,4.7062,148.74,148.68,0.12549]
[1723392589402,4.7062,148.74,148.68,0.25098]
[1723392589625,4.7065,148.73,148.68,0.12549]
[1723392589803,4.7065,148.73,148.68,4.7078]
[1723392590223,31.1762,148.74,148.69,4.7076]
[1723392590527,4.7065,148.73,148.69,4.7076]
[1723392590734,31.1762,148.74,148.69,4.7076]
[1723392591036,4.7065,148.73,148.69,4.7076]
[1723392591226,31.1762,148.74,148.69,4.7076]
[1723392591428,4.7059,148.75,148.7,4.7072]
[1723392591807,31.1756,148.76,148.71,4.707]
[1723392592004,4.7056,148.76,148.69,0.12549]
[1723392592730,4.706,148.75,148.69,0.12549]
[1723392593128,4.7056,148.76,148.69,0.12549]
[1723392593337,4.7059,148.75,148.69,0.12549]
[1723392594023,4.7062,148.74,148.68,0.37647]
[1723392594740,4.7065,148.73,148.69,4.7076]
[1723392595036,4.7065,148.73,148.66,6.1396]
[1723392595037,4.7061,148.75,148.7,4.7074]
[1723392595420,4.7061,148.75,148.71,4.707]
[1723392596244,4.7062,148.74,148.67,0.12549]
[1723392596406,4.7067,148.73,148.67,45.50196]
[1723392596811,4.7068,148.72,148.67,45.37647]
[1723392597622,4.7066,148.73,148.67,45.37647]
[1723392597938,26.47,148.74,148.68,1.34507503]
[1723392598444,26.47,148.76,148.68,1.34507503]
[1723392598641,4.7059,148.75,148.7,4.7072]
[1723392598946,4.7059,148.75,148.68,1.34507503]
[1723392599239,4.7059,148.75,148.68,1.3448929]
[1723392599938,4.7065,148.73,148.67,45.37647]
[1723392600131,21.3,148.74,148.67,45.37647]
[1723392600522,4.7071,148.71,148.67,45.37647]
[1723392600728,4.7069,148.72,148.67,50.08457]
[1723392601044,26.007,148.72,148.68,4.708]
[1723392601454,4.7075,148.7,148.66,10.8483]
[1723392601636,21.3,148.72,148.66,6.1396]
[1723392601952,21.3,148.72,148.67,4.7082]
[1723392602323,21.3,148.72,148.66,10.8482]
[1723392602630,26.0075,148.7,148.65,21.1923]
[1723392602832,4.7081,148.68,148.65,16.4834]
[1723392603055,21.3,148.68,148.65,16.4834]
[1723392603226,26.0081,148.68,148.65,16.4834]
[1723392603750,11.765,148.75,148.65,16.4834]
[1723392603959,21.3,148.74,148.7,4.7074]
[1723392604243,4.7071,148.72,148.67,4.7081]
[1723392604549,4.7073,148.71,148.65,16.4834]
[1723392604851,4.7074,148.7,148.66,4.7084]
[1723392605054,21.3,148.71,148.65,16.4834]
[1723392605225,11.766,148.74,148.64,0.25098]
[1723392605226,26.008,148.69,148.64,4.7092]
[1723392605750,4.7084,148.67,148.63,0.8084404]
[1723392606062,4.7088,148.66,148.63,0.8084404]
[1723392606347,26.0091,148.65,148.63,0.8084404]
[1723392607154,26.009,148.65,148.63,0.8084404]
[1723392607660,21.3,148.65,148.63,0.8084404]
[1723392607822,31.3687,148.66,148.63,0.8084404]
[1723392608148,26.66,148.66,148.63,0.8084404]
[1723392608354,31.369,148.66,148.63,0.8084404]
[1723392608721,26.66,148.66,148.63,0.8084404]
[1723392608925,31.3687,148.66,148.63,0.8084404]
[1723392609125,4.709,148.65,148.63,0.8084404]
[1723392609528,26.66,148.68,148.63,0.8084404]
[1723392609851,4.7074,148.71,148.66,4.7086]
[1723392610053,31.367,148.72,148.67,4.7083]
[1723392610232,4.7075,148.7,148.65,4.709]
[1723392610543,4.7071,148.71,148.66,4.7087]
[1723392610854,16.5353,148.75,148.64,21.4495]
[1723392611064,4.7071,148.71,148.66,4.7086]
[1723392611234,4.7075,148.7,148.65,4.83449]
[1723392611570,4.7075,148.7,148.64,21.57499]
[1723392611571,4.7081,148.68,148.64,15.0694]
[1723392612125,26.66,148.7,148.64,19.7786]
[1723392612325,4.7078,148.69,148.65,4.709]
[1723392612556,4.708,148.68,148.64,19.7786]
[1723392612730,4.7078,148.69,148.64,19.7786]
[1723392612930,4.7078,148.69,148.65,4.709]
[1723392613343,4.7075,148.7,148.65,4.709]
[1723392613748,20.0,148.71,148.64,19.7787]
[1723392614131,4.7081,148.68,148.64,15.0694]
[1723392614347,26.66,148.68,148.63,0.8084404]
[1723392614543,31.3693,148.64,148.63,0.8084404]
[1723392615454,31.3693,148.64,148.57,6.3801]
[1723392615455,4.7106,148.6,148.57,6.3801]
[1723392615752,4.7106,148.6,148.56,15.0694]
[1723392616431,4.7111,148.59,148.54,4.7123]
[1723392616628,4.7115,148.58,148.53,4.7127]
[1723392616956,31.3715,148.57,148.53,4.7127]
[1723392617157,26.66,148.57,148.53,4.7127]
[1723392617355,26.66,148.57,148.51,4.7132]
[1723392617553,4.7121,148.56,148.51,4.7132]
[1723392617940,26.66,148.55,148.51,4.7132]
[1723392618337,31.3722,148.55,148.51,4.7132]
[1723392618527,31.3722,148.55,148.5,4.7137]
[1723392618730,54.9716,148.61,148.49,10.5939]
[1723392618731,26.66,148.53,148.49,10.5939]
[1723392619031,26.66,148.53,148.48,15.8778404]
[1723392619032,31.3735,148.51,148.48,0.8084404]
[1723392619338,31.3727,148.54,148.49,4.7139]
[1723392619662,31.3721,148.56,148.5,4.7135]
[1723392619865,4.7125,148.54,148.49,4.714]
[1723392620159,24.7122,148.55,148.5,4.7137]
[1723392620356,20.0,148.55,148.48,0.8084404]
[1723392620562,24.7122,148.55,148.5,4.7135]
[1723392620727,24.7122,148.55,148.51,45.0]
[1723392621046,20.0,148.55,148.51,49.7133]
[1723392621246,4.7122,148.55,148.51,45.0]
[1723392621627,31.3721,148.56,148.51,49.7133]
[1723392621834,4.7123,148.55,148.51,45.0]
[1723392622146,4.7118,148.57,148.5,45.0]
[1723392622353,24.7118,148.57,148.5,45.0]
[1723392622856,4.7119,148.56,148.5,45.0]
[1723392623242,26.66,148.56,148.5,45.0]
[1723392623450,26.66,148.54,148.48,0.8084404]
[1723392623639,26.66,148.54,148.48,45.8084404]
[1723392623959,4.7134,148.52,148.48,0.8084404]
[1723392624135,4.7137,148.51,148.48,0.8084404]
[1723392624533,4.7138,148.5,148.48,0.8084404]
[1723392624747,4.7141,148.49,148.48,0.8084404]
[1723392626671,24.83959,148.49,148.48,0.8084404]
[1723392627171,24.7141,148.49,148.48,0.8084404]
[1723392627475,20.0,148.49,148.48,0.8084404]
[1723392627761,24.7141,148.49,148.48,0.8084404]
[1723392628135,24.83959,148.49,148.48,0.8084404]
[1723392629330,25.09057,148.49,148.48,0.8084404]
[1723392629741,25.21606,148.49,148.48,0.8084404]
[1723392630363,4.7151,148.46,148.41,4.7165]
[1723392630571,31.3756,148.45,148.39,4.7171]
[1723392630866,31.375,148.47,148.42,4.7162]
[1723392631068,46.66,148.49,148.38,26.66]
[1723392631230,46.66,148.49,148.37,22.2979]
[1723392631433,4.7156,148.45,148.4,4.7168]
[1723392631857,46.66,148.49,148.41,45.0]
[1723392632054,46.66,148.49,148.42,4.7163]
[1723392632055,4.7148,148.47,148.42,4.7163]
[1723392632238,4.715,148.46,148.43,45.0]
[1723392632740,4.7155,148.45,148.42,45.0]
[1723392632950,4.7157,148.44,148.4,4.7169]
[1723392633132,26.66,148.47,148.4,4.7169]
[1723392633331,4.7151,148.46,148.42,4.7163]
[1723392633555,4.7151,148.46,148.41,4.7164]
[1723392633745,4.7151,148.46,148.37,48.9579]
[1723392633746,4.7154,148.45,148.4,4.7169]
[1723392634360,4.7154,148.45,148.41,45.0]
[1723392634562,4.7151,148.46,148.41,49.7164]
[1723392634770,4.7155,148.45,148.41,45.0]
[1723392635060,4.7151,148.46,148.41,49.7165]
[1723392635477,4.7151,148.46,148.41,45.0]
[1723392635760,4.715,148.46,148.42,4.7162]
[1723392635958,4.7148,148.47,148.42,4.7162]
[1723392636149,20.0,148.48,148.41,45.0]
[1723392636150,24.7144,148.48,148.43,49.7158]
[1723392636355,24.7144,148.48,148.43,4.7158]
[1723392636551,4.7149,148.47,148.43,4.7159]
[1723392636765,6.0858,148.5,148.44,49.7155]
[1723392636999,4.7144,148.48,148.43,4.7159]
[1723392637259,26.66,148.47,148.41,45.0]
[1723392637565,26.66,148.47,148.41,49.7166]
[1723392637770,4.7151,148.46,148.41,49.7166]
[1723392638492,20.0,148.48,148.41,45.0]
[1723392638661,20.0,148.48,148.41,49.7165]
[1723392638662,4.715,148.46,148.41,49.7165]
[1723392639492,4.7147,148.47,148.41,45.0]
[1723392639680,29.62990538,148.54,148.42,0.25098]
[1723392639884,26.66,148.53,148.44,6.431]
[1723392640086,4.7134,148.52,148.47,4.7146]
[1723392640297,4.7127,148.54,148.49,4.7141]
[1723392640467,32.7458,148.57,148.49,4.7141]
[1723392640669,32.7458,148.57,148.5,49.7135]
[1723392640670,26.66,148.57,148.5,49.7135]
[1723392640890,4.7125,148.54,148.5,49.7137]
[1723392641066,26.66,148.57,148.45,26.66]
[1723392641067,11.7804,148.56,148.45,26.66]
[1723392641267,26.66,148.55,148.46,45.0]
[1723392641594,26.66,148.55,148.49,4.714]
[1723392641799,4.7129,148.53,148.5,45.0]
[1723392642096,4.7141,148.49,148.44,11.39758]
[1723392642266,4.7145,148.48,148.45,45.0]
[1723392642691,4.7138,148.5,148.45,49.7153]
[1723392642888,4.7138,148.5,148.46,4.715]
[1723392643089,4.7135,148.51,148.47,45.0]
[1723392643287,4.7138,148.5,148.45,4.7152]
[1723392643888,4.7138,148.5,148.46,4.715]
[1723392644090,24.7132,148.52,148.44,6.431]
[1723392644289,4.7135,148.51,148.47,4.7147]
[1723392644793,4.7132,148.52,148.48,45.0]
[1723392645169,20.0,148.54,148.48,45.0]
[1723392645395,4.7129,148.53,148.48,49.7143]
[1723392645582,4.7132,148.52,148.48,45.0]
[1723392645972,4.7135,148.51,148.48,45.0]
[1723392646274,4.7148,148.47,148.43,15.8669]
[1723392646589,4.7144,148.48,148.43,20.5828]
[1723392646970,26.66,148.49,148.43,15.8669]
[1723392647171,26.66,148.49,148.42,4.7162]
[1723392647172,4.7146,148.48,148.44,4.7156]
[1723392647381,4.7147,148.47,148.4,6.1446]
[1723392647580,4.7151,148.46,148.42,4.716]
[1723392647895,4.7151,148.46,148.4,6.1446]
[1723392648102,26.66,148.47,148.4,10.8615]
[1723392648284,4.7154,148.45,148.4,4.7169]
[1723392648592,4.7154,148.45,148.41,4.7166]
[1723392648773,26.66,148.47,148.39,16.0225]
[1723392649393,31.3748,148.47,148.42,4.7162]
[1723392650195,4.7151,148.46,148.42,4.7162]
[1723392650387,26.66,148.47,148.42,4.7162]
[1723392650575,31.3748,148.47,148.42,4.7162]
[1723392650774,4.7148,148.47,148.42,4.7162]
[1723392651404,4.7151,148.46,148.41,4.7166]
[1723392651709,4.7151,148.46,148.42,45.0]
[1723392651877,4.7151,148.46,148.42,49.7162]
[1723392652280,4.7155,148.45,148.42,45.0]
[1723392652794,4.7151,148.46,148.42,45.0]
[1723392652999,20.0,148.48,148.42,45.0]
[1723392653198,20.0,148.48,148.44,4.7155]
[1723392653199,4.7144,148.48,148.44,4.7155]
[1723392653493,4.7144,148.48,148.45,45.0]
[1723392654078,31.3742,148.49,148.45,45.0]
[1723392654398,4.7138,148.5,148.45,49.7152]
[1723392654600,24.7138,148.5,148.45,49.7152]
[1723392654895,4.7141,148.49,148.45,45.0]
[1723392655680,38.4425,148.53,148.45,45.0]
[1723392655868,38.4425,148.53,148.45,49.7153]
[1723392656075,4.7144,148.48,148.45,45.0]
[1723392656688,4.7142,148.49,148.45,49.7152]
[1723392656885,4.7138,148.5,148.45,49.7152]
[1723392657088,26.66,148.53,148.45,45.0]
[1723392657292,4.7134,148.52,148.48,4.7143]
[1723392658002,4.7134,148.52,148.49,45.0]
[1723392658582,43.0767,148.55,148.48,49.7143]
[1723392658771,20.0,148.54,148.49,45.0]
[1723392658978,26.66,148.55,148.49,45.0]
[1723392659299,16.4167,148.65,148.54,16.0225]
[1723392659504,4.71,148.62,148.55,65.50196]
[1723392659703,4.71,148.62,148.58,4.7112]
[1723392659873,4.7097,148.63,148.58,4.7112]
[1723392660207,4.7097,148.63,148.59,4.7109]
[1723392660396,6.4563,148.67,148.59,45.0]
[1723392660397,26.66,148.67,148.59,45.0]
[1723392660575,26.66,148.69,148.59,51.1446]
[1723392660909,26.66,148.65,148.59,45.0]
[1723392661094,26.66,148.65,148.58,45.0]
[1723392661776,4.7086,148.67,148.62,4.7099]
[1723392662094,4.7087,148.66,148.61,4.7102]
[1723392662299,26.66,148.68,148.62,45.0]
[1723392662603,4.7093,148.65,148.6,4.7105]
[1723392662805,26.66,148.66,148.61,45.0]
[1723392662976,28.1856,148.7,148.57,0.12549]
[1723392662977,4.7102,148.62,148.57,0.12549]
[1723392663179,4.7102,148.62,148.57,4.7114]
[1723392663480,4.7097,148.63,148.58,49.7112]
[1723392663693,26.66,148.64,148.58,45.0]
[1723392663877,4.7106,148.61,148.55,6.1446]
[1723392664084,26.66,148.64,148.56,45.0]
[1723392664281,4.7096,148.63,148.56,45.0]
[1723392664596,26.66,148.66,148.57,0.25098]
[1723392664781,20.0,148.65,148.57,0.37647]
[1723392664991,24.709,148.65,148.6,4.7105]
[1723392665187,26.66,148.68,148.61,45.0]
[1723392665381,4.7086,148.67,148.62,4.7099]
[1723392665584,31.3681,148.68,148.63,4.7096]
[1723392665800,4.7081,148.68,148.63,4.7096]
[1723392666113,4.7081,148.68,148.61,45.0]
[1723392666114,4.7078,148.69,148.64,49.7093]
[1723392666398,4.7075,148.7,148.65,49.709]
[1723392666603,4.7077,148.69,148.64,4.7093]
[1723392666805,4.7084,148.67,148.65,45.0]
[1723392667103,4.708,148.69,148.65,49.709]
[1723392667286,4.7072,148.71,148.65,45.0]
[1723392667493,4.7077,148.69,148.65,45.0]
[1723392668204,4.7075,148.7,148.65,49.7089]
[1723392668504,26.66,148.74,148.65,45.0]
[1723392668807,55.0043,148.76,148.68,4.7079]
[1723392669016,26.66,148.72,148.65,45.0]
[1723392669311,4.7078,148.69,148.65,45.0]
[1723392669483,4.7075,148.7,148.65,49.7089]
[1723392669679,4.7087,148.66,148.65,45.0]
[1723392669897,4.7087,148.66,148.61,4.7102]
[1723392670095,4.709,148.65,148.61,4.7102]
[1723392670296,26.66,148.66,148.58,19.7175]
[1723392670605,26.66,148.66,148.6,4.7105]
[1723392670806,4.7091,148.65,148.6,4.7105]
[1723392671313,4.7098,148.63,148.58,15.0063]
[1723392672111,4.71,148.62,148.58,15.0063]
[1723392672289,4.7105,148.61,148.56,10.9217]
[1723392672984,4.7107,148.6,148.56,6.2101]
[1723392673191,4.7107,148.6,148.55,4.7121]
[1723392673507,4.7103,148.61,148.56,4.7117]
[1723392674008,31.37,148.62,148.57,4.7115]
[1723392674307,4.7112,148.58,148.53,15.0063]
[1723392674684,4.7112,148.58,148.53,19.7188]
[1723392675177,4.7119,148.56,148.48,21.2164]
[1723392675379,26.66,148.58,148.48,21.2164]
[1723392675584,26.66,148.58,148.52,4.7129]
[1723392675807,4.7117,148.57,148.52,4.7129]
[1723392676008,26.66,148.6,148.54,4.7123]
[1723392676177,4.711,148.59,148.54,4.7123]
[1723392676380,4.7113,148.58,148.53,4.7127]
[1723392676608,4.7113,148.58,148.54,45.0]
[1723392676784,4.7116,148.57,148.54,45.0]
[1723392678007,4.7113,148.58,148.54,45.0]
[1723392678311,26.66,148.62,148.54,45.0]
[1723392678485,24.7103,148.61,148.57,4.7115]
[1723392678685,24.7103,148.61,148.54,45.0]
[1723392678903,20.0,148.61,148.53,49.7127]
[1723392679104,4.7106,148.6,148.55,4.7119]
[1723392679285,4.7106,148.6,148.56,45.0]
[1723392679486,26.66,148.64,148.53,45.0]
[1723392679811,26.66,148.62,148.52,45.0]
[1723392679990,4.7113,148.58,148.52,45.0]
[1723392680195,4.7115,148.57,148.52,45.0]
[1723392680408,4.7115,148.57,148.52,49.7129]
[1723392680616,4.7113,148.58,148.53,4.7127]
[1723392680911,4.7109,148.59,148.54,4.7124]
[1723392681089,4.7109,148.59,148.55,4.7121]
[1723392681716,4.7109,148.59,148.49,26.66]
[1723392681717,4.7109,148.59,148.54,4.7124]
[1723392681921,26.66,148.6,148.53,4.7128]
[1723392682210,4.7112,148.59,148.54,4.7125]
[1723392682390,4.7112,148.59,148.54,49.7125]
[1723392683510,4.7113,148.58,148.54,49.7125]
[1723392683890,4.7119,148.56,148.54,45.0]
[1723392684090,4.7119,148.56,148.53,45.0]
[1723392684304,4.7116,148.57,148.53,45.0]
[1723392684923,20.0,148.59,148.53,46.34647907]
[1723392685104,4.7103,148.61,148.57,4.7115]
[1723392685905,4.71,148.62,148.57,4.7115]
[1723392686090,4.7103,148.61,148.58,45.0]
[1723392686600,4.7103,148.61,148.57,45.0]
[1723392686802,4.7103,148.61,148.57,49.7114]
[1723392687001,4.7103,148.61,148.57,45.0]
[1723392687809,4.7106,148.6,148.57,45.0]
[1723392689016,4.7103,148.61,148.57,45.0]
[1723392689202,4.7103,148.61,148.57,49.7115]
[1723392689404,20.0,148.63,148.57,45.0]
[1723392690093,4.7104,148.61,148.57,45.0]
[1723392690713,4.7094,148.64,148.57,45.0]
[1723392691021,22.5924,148.68,148.59,26.66]
[1723392691200,26.66,148.7,148.65,4.7088]
[1723392691201,4.7077,148.7,148.65,4.7088]
[1723392691522,4.7074,148.7,148.65,4.7088]
[1723392691696,4.7074,148.7,148.66,45.0]
[1723392691894,22.4783,148.72,148.66,45.0]
[1723392691895,4.7078,148.69,148.66,45.0]
[1723392692090,4.7078,148.69,148.65,45.0]
[1723392692290,22.4783,148.72,148.65,45.0]
[1723392692606,4.7084,148.67,148.62,11.10129]
[1723392692916,4.708,148.69,148.64,4.7091]